bitfinex/quotes_BTCUSD_20241223
["timestamp","ask_amount","ask_price","bid_price","bid_amount"]
[1734940938938,0.0001712,95400.0,95384.0,0.419356]
[1734940939240,0.0001712,95400.0,95389.0,0.209666]
[1734940939615,0.0001712,95400.0,95390.0,0.10132395]
[1734940940204,0.0041712,95400.0,95391.0,0.209663]
[1734940940405,0.0041712,95400.0,95396.0,0.20965]
[1734940940626,0.0061712,95400.0,95398.0,0.209648]
[1734940940832,0.0061712,95400.0,95399.0,0.15]
[1734940941260,0.0061712,95400.0,95399.0,0.32885658]
[1734940941466,0.0021712,95400.0,95399.0,0.3756084]
[1734940941664,0.0001712,95400.0,95399.0,0.3756084]
[1734940941861,0.0041712,95400.0,95399.0,0.3756084]
[1734940942067,0.0001712,95400.0,95399.0,0.3756084]
[1734940942359,0.0021712,95400.0,95399.0,0.3776084]
[1734940942715,0.0001712,95400.0,95399.0,0.3776084]
[1734940942885,0.0001712,95400.0,95399.0,0.3786084]
[1734940943104,0.0001712,95417.0,95416.0,0.359608]
[1734940943289,0.0001712,95417.0,95416.0,0.4609164]
[1734940944298,0.0001712,95417.0,95416.0,0.46100069]
[1734940945210,0.0001712,95417.0,95416.0,0.10339269]
[1734940945413,0.0001712,95417.0,95416.0,0.00208429]
[1734940945994,0.0001712,95417.0,95416.0,0.00708429]
[1734940946349,0.0001712,95417.0,95416.0,0.00208429]
[1734940946746,0.0031712,95417.0,95416.0,0.00208429]
[1734940946977,0.0031712,95417.0,95416.0,8.429e-05]
[1734940948336,0.0051712,95417.0,95416.0,8.429e-05]
[1734940948548,0.0021712,95417.0,95416.0,8.429e-05]
[1734940948749,0.0051712,95417.0,95416.0,8.429e-05]
[1734940948948,0.0031712,95417.0,95416.0,8.429e-05]
[1734940949162,0.0021712,95417.0,95416.0,8.429e-05]
[1734940949361,0.0051712,95417.0,95416.0,8.429e-05]
[1734940950635,0.2147772,95417.0,95416.0,8.429e-05]
[1734940951608,0.2127772,95417.0,95416.0,8.429e-05]
[1734940951809,0.2117772,95417.0,95416.0,8.429e-05]
[1734940952001,0.2147772,95417.0,95416.0,8.429e-05]
[1734940952382,0.2097772,95417.0,95416.0,8.429e-05]
[1734940952615,0.2117772,95417.0,95416.0,8.429e-05]
[1734940952852,0.2147772,95417.0,95416.0,8.429e-05]
[1734940953439,0.2965772,95417.0,95416.0,8.429e-05]
[1734940953649,0.20965,95397.0,95383.0,0.02789401]
[1734940953949,0.0814,95398.0,95383.0,8.432e-05]
[1734940954087,0.20967,95388.0,95383.0,8.432e-05]
[1734940954800,0.419341,95388.0,95383.0,8.432e-05]
[1734940955631,0.419341,95388.0,95383.0,0.00108432]
[1734940955998,0.419341,95388.0,95383.0,0.00308432]
[1734940956332,0.420341,95388.0,95383.0,0.00308432]
[1734940956614,0.419348,95386.0,95383.0,0.00308432]
[1734940956743,0.419348,95386.0,95383.0,8.432e-05]
[1734940956943,0.209678,95384.0,95383.0,8.432e-05]
[1734940957126,0.3109864,95384.0,95383.0,8.432e-05]
[1734940958859,0.217678,95384.0,95383.0,8.432e-05]
[1734940959238,0.209678,95384.0,95383.0,8.432e-05]
[1734940959669,0.217678,95384.0,95383.0,8.432e-05]
[1734940959843,0.212678,95384.0,95383.0,8.432e-05]
[1734940960226,0.217678,95384.0,95383.0,8.432e-05]
[1734940960885,0.214678,95384.0,95383.0,8.432e-05]
[1734940961268,0.217678,95384.0,95383.0,8.432e-05]
[1734940961627,0.214678,95384.0,95383.0,8.432e-05]
[1734940962028,0.212678,95384.0,95383.0,8.432e-05]
[1734940962459,0.217678,95384.0,95383.0,8.432e-05]
[1734940962661,0.3369864,95384.0,95383.0,8.432e-05]
[1734940962904,0.3339864,95384.0,95383.0,8.432e-05]
[1734940963116,0.3389864,95384.0,95383.0,8.432e-05]
[1734940963978,0.3339864,95384.0,95383.0,8.432e-05]
[1734940964193,0.3389864,95384.0,95383.0,8.432e-05]
[1734940964609,0.3159864,95384.0,95383.0,8.432e-05]
[1734940964891,0.217678,95384.0,95383.0,8.432e-05]
[1734940965332,0.214678,95384.0,95383.0,8.432e-05]
[1734940965534,0.209678,95384.0,95383.0,8.432e-05]
[1734940965734,0.212678,95384.0,95383.0,8.432e-05]
[1734940965979,0.217678,95384.0,95383.0,8.432e-05]
[1734940966153,0.209678,95384.0,95383.0,0.00016992]
[1734940966356,0.212678,95384.0,95383.0,0.00016992]
[1734940966558,0.217678,95384.0,95383.0,0.00016992]
[1734940966792,0.212678,95384.0,95383.0,0.00016992]
[1734940966992,0.003,95384.0,95383.0,0.00016992]
[1734940967215,0.008,95384.0,95383.0,0.00016992]
[1734940968235,0.005,95384.0,95383.0,0.00016992]
[1734940968641,0.003,95384.0,95383.0,0.00016992]
[1734940969002,0.001,95384.0,95383.0,0.00016992]
[1734940969226,0.209674,95386.0,95383.0,0.00016992]
[1734940969440,0.001,95384.0,95383.0,0.00016992]
[1734940969598,0.002,95384.0,95383.0,0.00016992]
[1734940969803,0.209674,95386.0,95383.0,0.00016992]
[1734940970371,0.209656,95395.0,95383.0,0.00016992]
[1734940970868,0.209664,95391.0,95383.0,0.00016992]
[1734940971097,0.209656,95394.0,95383.0,0.00016992]
[1734940971432,0.419312,95394.0,95383.0,0.00016992]
[1734940971637,0.001,95386.0,95383.0,0.00016992]
[1734940971837,0.001,95386.0,95384.0,0.0784]
[1734940972287,0.209641,95401.0,95384.0,0.0784]
[1734940972462,0.209633,95405.0,95390.0,0.10132395]
[1734940972463,0.001,95394.0,95390.0,0.10132395]
[1734940972675,0.002,95394.0,95385.0,0.1013084]
[1734940972878,0.209633,95405.0,95389.0,0.209667]
[1734940974689,0.209633,95405.0,95389.0,0.419334]
[1734940974892,0.001,95394.0,95389.0,0.419334]
[1734940975785,0.209633,95405.0,95389.0,0.419334]
[1734940975993,0.213633,95405.0,95389.0,0.419334]
[1734940976537,0.209633,95405.0,95389.0,0.419334]
[1734940976859,0.15,95438.0,95396.0,0.20965]
[1734940976860,0.077,95418.0,95396.0,0.20965]
[1734940977012,0.209622,95410.0,95396.0,0.20965]
[1734940977212,0.209622,95410.0,95393.0,0.257758]
[1734940977417,0.209622,95410.0,95394.0,0.1013084]
[1734940977597,0.209622,95410.0,95395.0,0.209654]
[1734940977981,0.209622,95410.0,95395.0,0.419308]
[1734940978390,0.002,95405.0,95395.0,0.419308]
[1734940978593,0.006,95405.0,95395.0,0.419308]
[1734940978816,0.209622,95410.0,95395.0,0.419308]
[1734940979018,0.005,95410.0,95397.0,0.15]
[1734940979218,0.005,95410.0,95400.0,0.10132395]
[1734940979219,0.008,95410.0,95400.0,0.10132395]
[1734940979426,0.003,95410.0,95407.0,0.209627]
[1734940979667,0.0001712,95416.0,95403.0,0.209636]
[1734940980299,0.0001712,95416.0,95400.0,0.1013084]
[1734940980504,0.0001712,95416.0,95400.0,0.33560375]
[1734940980505,0.001,95410.0,95400.0,0.33560375]
[1734940981339,0.001,95410.0,95400.0,0.12596175]
[1734940981766,0.419222,95415.0,95400.0,0.12596175]
[1734940981951,0.002,95410.0,95401.0,0.209641]
[1734940982290,0.20961,95415.0,95401.0,0.209641]
[1734940982516,0.002,95410.0,95401.0,0.209641]
[1734940982911,0.21161,95415.0,95400.0,0.12596175]
[1734940983129,0.209612,95414.0,95400.0,0.12596175]
[1734940983335,0.209612,95414.0,95401.0,0.209641]
[1734940983336,0.002,95410.0,95401.0,0.209641]
[1734940983534,0.1286,95409.0,95381.0,0.14169986]
[1734940983735,0.209657,95394.0,95381.0,0.09299986]
[1734940983939,0.288357,95394.0,95381.0,0.09299986]
[1734940984144,0.209658,95393.0,95381.0,0.09299986]
[1734940984584,0.209669,95389.0,95381.0,0.09299986]
[1734940984780,0.209669,95389.0,95378.0,0.209691]
[1734940985446,0.209669,95389.0,95383.0,0.00516992]
[1734940985627,0.209669,95389.0,95383.0,0.00016992]
[1734940985775,0.209678,95384.0,95383.0,0.02505202]
[1734940985976,0.209678,95384.0,95383.0,0.00116992]
[1734940986588,0.209678,95384.0,95383.0,0.00016992]
[1734940987020,0.209678,95384.0,95383.0,0.00316992]
[1734940987895,0.24234192,95384.0,95383.0,0.00316992]
[1734940988333,0.24234192,95384.0,95383.0,0.00116992]
[1734940988713,0.24234192,95384.0,95383.0,0.00016992]
[1734940988932,0.211678,95384.0,95383.0,0.00016992]
[1734940989127,0.002,95384.0,95383.0,0.00016992]
[1734940989759,0.003,95384.0,95383.0,0.00016992]
[1734940990958,0.005,95384.0,95383.0,0.00016992]
[1734940991597,0.003,95384.0,95383.0,0.00016992]
[1734940992446,0.1292,95384.0,95383.0,0.00016992]
[1734940992853,0.16186641,95384.0,95383.0,0.00016992]
[1734940993070,0.15886641,95384.0,95383.0,0.00016992]
[1734940993399,0.16286641,95384.0,95383.0,0.00016992]
[1734940994795,0.16486641,95384.0,95383.0,0.00016992]
[1734940995202,0.209712,95369.0,95363.0,0.01068853]
[1734940995394,0.209712,95369.0,95363.0,0.0001241]
[1734940995614,0.0824,95384.0,95363.0,0.1014325]
[1734940995824,0.209683,95382.0,95370.0,0.10132395]
[1734940996649,0.209683,95382.0,95370.0,0.31103195]
[1734940997099,0.209684,95382.0,95372.0,0.081]
[1734940997320,0.209704,95373.0,95364.0,0.231]
[1734940997553,0.209713,95369.0,95364.0,0.15]
[1734940998187,0.209704,95373.0,95364.0,0.15]
[1734940998436,0.209713,95369.0,95363.0,0.0212474]
[1734940998613,0.0765,95382.0,95363.0,0.0212474]
[1734940998815,0.0765,95382.0,95364.0,0.001]
[1734940999013,0.0765,95382.0,95364.0,0.004]
[1734940999215,0.0765,95392.0,95365.0,0.1013084]
[1734940999445,0.03266806,95391.0,95366.0,0.00104851]
[1734940999748,0.03266806,95391.0,95367.0,0.1013084]
[1734941001416,0.003,95382.0,95367.0,0.1013084]
[1734941001617,0.0765,95392.0,95367.0,0.1013084]
[1734941001824,0.0356696,95391.0,95367.0,0.1013084]
[1734941002026,0.0326696,95390.0,95367.0,0.1023084]
[1734941002313,0.0326696,95390.0,95367.0,0.1013084]
[1734941002719,0.004,95382.0,95367.0,0.1013084]
[1734941003251,0.004,95382.0,95371.0,0.15]
[1734941003470,0.004,95382.0,95372.0,0.10235676]
[1734941003837,0.003,95382.0,95372.0,0.10235676]
[1734941004418,0.009,95390.0,95372.0,0.10235676]
[1734941004650,0.0772,95406.0,95372.0,0.10235676]
[1734941004768,0.006,95390.0,95372.0,0.10235676]
[1734941004965,0.006,95390.0,95380.0,0.10132395]
[1734941005175,0.006,95390.0,95381.0,0.10235668]
[1734941005378,0.006,95390.0,95372.0,0.00204828]
[1734941005578,0.0772,95406.0,95372.0,0.00204828]
[1734941005579,0.023,95405.0,95373.0,0.1013084]
[1734941005833,0.13397235,95404.0,95373.0,0.1013084]
[1734941006031,0.002,95390.0,95373.0,0.1013084]
[1734941006445,0.1013084,95404.0,95373.0,0.1023568]
[1734941006596,0.03266403,95403.0,95373.0,0.1023568]
[1734941006795,0.03266403,95403.0,95380.0,0.10132395]
[1734941006992,0.03266403,95402.0,95380.0,0.10132395]
[1734941007197,0.001,95390.0,95380.0,0.10132395]
[1734941007665,0.0772,95406.0,95380.0,0.10132395]
[1734941007870,0.03266252,95405.0,95380.0,0.10132395]
[1734941008099,0.002,95403.0,95380.0,0.10132395]
[1734941008296,0.002,95390.0,95380.0,0.10132395]
[1734941008701,0.0802,95406.0,95380.0,0.10132395]
[1734941008906,0.03266523,95405.0,95380.0,0.10232395]
[1734941009057,0.03266523,95405.0,95380.0,0.20363235]
[1734941009262,0.03266523,95405.0,95381.0,0.1013084]
[1734941009469,0.03266523,95405.0,95390.0,0.10132395]
[1734941009670,0.03266523,95405.0,95392.0,0.1999]
[1734941009875,0.003,95406.0,95393.0,0.10235655]
[1734941010104,0.0757,95421.0,95393.0,0.10235655]
[1734941010330,0.03266467,95415.0,95393.0,0.10235655]
[1734941011064,0.1013084,95414.0,95393.0,0.0001241]
[1734941011239,0.003,95406.0,95393.0,0.0001241]
[1734941011454,0.083,95405.0,95393.0,0.0001241]
[1734941011684,0.078,95405.0,95393.0,0.0001241]
[1734941011868,0.03266699,95404.0,95393.0,0.0001241]
[1734941012081,0.03266699,95404.0,95393.0,0.0011241]
[1734941012264,0.03266699,95404.0,95393.0,0.0001241]
[1734941012467,0.078,95405.0,95393.0,0.0001241]
[1734941012704,0.083,95405.0,95393.0,0.0001241]
[1734941013041,0.03266993,95404.0,95393.0,0.0001241]
[1734941013648,0.08,95405.0,95393.0,0.0001241]
[1734941013997,0.078,95405.0,95393.0,0.0001241]
[1734941014351,0.006,95404.0,95393.0,0.0001241]
[1734941014754,0.078,95405.0,95393.0,0.0001241]
[1734941015135,0.083,95405.0,95393.0,0.0001241]
[1734941015309,0.085,95405.0,95393.0,0.0001241]
[1734941015446,0.0801712,95405.0,95393.0,0.0001241]
[1734941015662,0.0366779,95404.0,95393.0,0.0001241]
[1734941015861,0.004,95404.0,95393.0,0.0001241]
[1734941016063,0.0801712,95405.0,95393.0,0.0001241]
[1734941016277,0.03268365,95404.0,95393.0,0.0001241]
[1734941016521,0.0831712,95405.0,95393.0,0.0001241]
[1734941016717,0.0071712,95405.0,95393.0,0.0001241]
[1734941016964,0.0071712,95405.0,95395.0,0.1301]
[1734941017377,0.0051712,95405.0,95395.0,0.1301]
[1734941017779,0.0021712,95405.0,95395.0,0.1301]
[1734941017932,0.004,95404.0,95395.0,0.1301]
[1734941018139,0.004,95404.0,95396.0,0.1013084]
[1734941018348,0.0001712,95405.0,95397.0,0.00104817]
[1734941018544,0.0021712,95405.0,95398.0,0.1013084]
[1734941018773,0.0021712,95405.0,95399.0,0.2106931]
[1734941018975,0.0011712,95405.0,95401.0,0.209641]
[1734941019174,0.0011712,95405.0,95401.0,0.1013084]
[1734941019860,0.0001712,95405.0,95401.0,0.1013084]
[1734941020270,0.0001712,95405.0,95402.0,0.209639]
[1734941020474,0.0001712,95405.0,95402.0,0.5205864]
[1734941020692,0.0001712,95405.0,95404.0,0.209634]
[1734941021331,0.0001712,95405.0,95404.0,0.3109424]
[1734941022284,0.0001712,95405.0,95404.0,0.3139424]
[1734941022491,0.0001712,95405.0,95404.0,0.3109424]
[1734941022959,0.0001712,95405.0,95404.0,0.3129424]
[1734941023251,0.0001712,95405.0,95404.0,0.3149424]
[1734941023681,0.0001712,95405.0,95404.0,0.5453424]
[1734941023913,0.0001712,95405.0,95404.0,0.5916424]
[1734941024584,0.0001712,95405.0,95404.0,0.5886424]
[1734941024986,0.0001712,95405.0,95404.0,0.5936424]
[1734941025169,0.0001712,95405.0,95404.0,0.5886424]
[1734941025696,0.0011712,95405.0,95404.0,0.5966424]
[1734941025898,0.0001712,95405.0,95404.0,0.5906424]
[1734941026105,0.0001712,95405.0,95404.0,0.93412736]
[1734941026300,0.0001712,95405.0,95404.0,0.93212736]
[1734941026685,0.0001712,95405.0,95404.0,0.93612736]
[1734941027113,0.0001712,95405.0,95404.0,0.5926424]
[1734941027435,0.0011712,95405.0,95404.0,0.6016424]
[1734941027633,0.0001712,95405.0,95404.0,0.5926424]
[1734941028400,0.0011712,95405.0,95404.0,0.6016424]
[1734941028734,0.0001712,95405.0,95404.0,0.7156424]
[1734941028931,0.0001712,95405.0,95404.0,0.7246424]
[1734941029143,0.0011712,95405.0,95404.0,0.7246424]
[1734941029364,0.0011712,95405.0,95404.0,0.5976424]
[1734941029668,0.0011712,95405.0,95404.0,0.6016424]
[1734941030207,0.0011712,95405.0,95404.0,1.12718687]
[1734941030416,0.0001712,95405.0,95404.0,1.21818687]
[1734941030545,0.0001712,95417.0,95415.0,0.35961]
[1734941030760,0.0001712,95417.0,95415.0,0.4609184]
[1734941031871,0.0001712,95417.0,95415.0,0.4689184]
[1734941032894,0.0001712,95417.0,95415.0,0.4719184]
[1734941033541,0.0001712,95417.0,95415.0,0.4689184]
[1734941033758,0.0001712,95417.0,95415.0,0.4719184]
[1734941033910,0.0001712,95417.0,95415.0,0.4639184]
[1734941034340,0.0001712,95417.0,95415.0,0.4719184]
[1734941034885,0.0001712,95417.0,95415.0,0.49899485]
[1734941038094,0.0001712,95417.0,95415.0,0.57979485]
[1734941040185,0.0001712,95428.0,95421.0,0.419194]
[1734941040381,0.0001712,95428.0,95422.0,0.25235621]
[1734941040588,0.0001712,95428.0,95423.0,0.359593]
[1734941040794,0.0001712,95428.0,95423.0,0.4609014]
[1734941041645,0.0001712,95428.0,95423.0,0.4610255]
[1734941042513,0.0001712,95428.0,95423.0,0.5082255]
[1734941043241,0.0001712,95428.0,95423.0,0.5122255]
[1734941044526,0.0001712,95428.0,95423.0,0.5142255]
[1734941044935,0.0001712,95428.0,95423.0,0.5957255]
[1734941045170,0.0001714,95435.0,95433.0,0.359571]
[1734941045309,0.0001714,95435.0,95434.0,0.2315]
[1734941045514,0.0001714,95435.0,95434.0,0.3328084]
[1734941047106,0.0001714,95435.0,95434.0,0.3368084]
[1734941048132,0.0001714,95435.0,95434.0,0.3378084]
[1734941048349,0.0001714,95435.0,95434.0,0.35886968]
[1734941051178,0.0001714,95435.0,95434.0,0.39300811]
[1734941052745,0.209416,95504.0,95490.0,0.59970773]
[1734941052952,0.30694039,95491.0,95490.0,0.59970773]
[1734941053641,0.51638339,95491.0,95490.0,0.59970773]
[1734941054048,0.51691754,95491.0,95490.0,0.60070773]
[1734941054234,0.55063934,95491.0,95490.0,0.60070773]
[1734941055287,0.55063934,95491.0,95490.0,0.52770773]
[1734941055666,0.55363934,95491.0,95490.0,0.52870773]
[1734941055870,0.68023934,95491.0,95490.0,0.52870773]
[1734941056269,0.67723934,95491.0,95490.0,0.52770773]
[1734941056470,0.67723934,95491.0,95490.0,0.52670773]
[1734941056904,0.67923934,95491.0,95490.0,0.52770773]
[1734941057130,0.67923934,95491.0,95490.0,0.52870773]
[1734941058064,0.64551754,95491.0,95490.0,0.52870773]
[1734941058271,0.62251754,95491.0,95490.0,0.52870773]
[1734941058482,0.49551754,95491.0,95490.0,0.52870773]
[1734941058681,0.46088555,95491.0,95490.0,0.52770773]
[1734941059095,0.46388555,95491.0,95490.0,0.52870773]
[1734941059507,0.49353724,95491.0,95490.0,0.52670773]
[1734941059935,0.46088555,95491.0,95490.0,0.52770773]
[1734941060108,0.49353691,95491.0,95490.0,0.52670773]
[1734941060314,0.44088555,95491.0,95490.0,0.52670773]
[1734941060559,0.44088555,95491.0,95490.0,0.52770773]
[1734941060768,0.44088555,95491.0,95490.0,0.52670773]
[1734941060981,0.44088555,95491.0,95490.0,0.52770773]
[1734941061191,0.44088555,95491.0,95490.0,0.45470773]
[1734941061755,0.43788555,95491.0,95490.0,0.45470773]
[1734941062133,0.44088555,95491.0,95490.0,0.45470773]
[1734941062335,0.0774,95459.0,95434.0,0.0762]
[1734941062460,0.1013084,95458.0,95431.0,0.09280663]
[1734941062661,0.209551,95442.0,95434.0,0.1]
[1734941063268,0.209566,95436.0,95431.0,0.09280663]
[1734941063472,0.209566,95436.0,95430.0,0.03296974]
[1734941063669,0.209575,95432.0,95428.0,0.0762]
[1734941064411,0.00053349,95436.0,95428.0,0.0762]
[1734941064848,0.00053349,95436.0,95428.0,0.0792]
[1734941065011,0.00053349,95436.0,95428.0,0.0762]
[1734941065169,0.00053349,95436.0,95431.0,0.102]
[1734941065370,0.419133,95435.0,95431.0,0.002]
[1734941065599,0.00053349,95436.0,95428.0,0.0762]
[1734941065800,0.00053349,95436.0,95417.0,0.0485712]
[1734941065801,0.00053349,95436.0,95417.0,0.1001712]
[1734941066036,0.00253349,95436.0,95417.0,0.1001712]
[1734941066275,0.209594,95423.0,95417.0,0.1001712]
[1734941066627,0.209586,95427.0,95417.0,0.1001712]
[1734941066858,0.20958,95429.0,95417.0,0.13348013]
[1734941067025,0.20958,95429.0,95418.0,0.1]
[1734941067231,0.20959,95425.0,95417.0,0.13348013]
[1734941068147,0.20959,95425.0,95422.0,0.1]
[1734941068730,0.21158,95429.0,95422.0,0.1]
[1734941068924,0.21158,95429.0,95417.0,0.13348013]
[1734941068925,0.209589,95425.0,95417.0,0.13348013]
[1734941069463,0.21158,95429.0,95418.0,0.1]
[1734941069661,0.002,95429.0,95418.0,0.1]
[1734941069873,0.002,95429.0,95423.0,0.1]
[1734941070704,0.209575,95432.0,95423.0,0.1]
[1734941072058,0.210575,95432.0,95423.0,0.1]
[1734941072748,0.213575,95432.0,95423.0,0.1]
[1734941074031,0.004,95432.0,95423.0,0.1]
[1734941074243,0.209577,95430.0,95423.0,0.1]
[1734941075661,0.209577,95430.0,95423.0,0.100171]
[1734941075789,0.212577,95430.0,95423.0,0.100171]
[1734941078545,0.003,95430.0,95423.0,0.100171]
[1734941078973,0.003,95430.0,95427.0,0.1]
[1734941079134,0.003,95430.0,95429.0,0.309579]
[1734941079333,0.003,95430.0,95429.0,0.4108874]
[1734941079561,0.003,95430.0,95429.0,0.5936874]
[1734941079774,0.003,95430.0,95429.0,0.7436874]
[1734941080348,0.002,95430.0,95429.0,0.7436874]
[1734941080850,0.003,95430.0,95429.0,0.7436874]
[1734941081128,0.001,95430.0,95429.0,0.7436874]
[1734941081329,0.00053349,95436.0,95435.0,0.209566]
[1734941081557,0.00053349,95436.0,95435.0,0.4108744]
[1734941082689,0.00053349,95436.0,95435.0,0.4158744]
[1734941083284,0.00053349,95436.0,95435.0,0.41449017]
[1734941084226,0.00053349,95436.0,95435.0,0.55698051]
[1734941084432,0.00053349,95436.0,95435.0,0.83978051]
[1734941085633,0.00053349,95436.0,95435.0,0.83778051]
[1734941085806,0.00053349,95436.0,95435.0,0.84178051]
[1734941086015,0.20946,95484.0,95468.0,0.1]
[1734941086212,0.20946,95484.0,95469.0,0.1]
[1734941086372,0.41892,95484.0,95469.0,0.1]
[1734941086567,0.20946,95484.0,95469.0,0.1]
[1734941086803,0.209461,95483.0,95469.0,0.1]
[1734941087030,0.418922,95483.0,95469.0,0.1]
[1734941087446,0.209461,95483.0,95469.0,0.1]
[1734941087661,0.209455,95486.0,95469.0,0.1]
[1734941087863,0.209455,95486.0,95472.0,0.1]
[1734941089156,0.003,95483.0,95472.0,0.1]
[1734941090402,0.209455,95486.0,95472.0,0.1]
[1734941090893,0.211455,95486.0,95472.0,0.1]
[1734941091112,0.002,95483.0,95476.0,0.1]
[1734941091319,0.002,95486.0,95476.0,0.1]
[1734941091723,0.004,95486.0,95476.0,0.1]
[1734941091930,0.209448,95489.0,95476.0,0.1]
[1734941092359,8.55e-05,95490.0,95476.0,0.1]
[1734941092360,0.003,95483.0,95476.0,0.1]
[1734941092596,0.001,95483.0,95476.0,0.1]
[1734941092798,0.001,95483.0,95468.0,0.04137386]
[1734941092972,0.001,95483.0,95469.0,0.1]
[1734941093184,0.209465,95481.0,95469.0,0.1]
[1734941093540,0.209465,95481.0,95468.0,0.04137386]
[1734941093541,0.209486,95472.0,95468.0,0.0001241]
[1734941093748,0.418972,95472.0,95468.0,0.0001241]
[1734941093977,0.209489,95470.0,95468.0,0.0001241]
[1734941094173,0.3107974,95470.0,95468.0,0.0001241]
[1734941094772,0.209489,95470.0,95468.0,0.0001241]
[1734941095177,0.214489,95470.0,95468.0,0.0001241]
[1734941095382,0.005,95470.0,95468.0,0.0001241]
[1734941095591,0.008,95470.0,95468.0,0.0001241]
[1734941096865,0.005,95470.0,95468.0,0.0001241]
[1734941097071,0.003,95470.0,95468.0,0.0001241]
[1734941097594,0.209479,95475.0,95468.0,0.0001241]
[1734941097997,0.002,95470.0,95468.0,0.0001241]
[1734941098177,0.002,95470.0,95469.0,0.1]
[1734941098406,0.005,95470.0,95468.0,0.0001241]
[1734941098604,0.007,95470.0,95468.0,0.0001241]
[1734941098808,0.002,95470.0,95468.0,0.0001241]
[1734941099029,0.002,95470.0,95468.0,0.0011241]
[1734941099373,0.002,95470.0,95468.0,0.0001241]
[1734941099780,0.003,95470.0,95468.0,0.0001241]
[1734941099978,0.209484,95473.0,95468.0,0.0001241]
[1734941100184,0.001,95470.0,95468.0,0.0001241]
[1734941100388,0.002,95470.0,95468.0,0.0001241]
[1734941100768,0.001,95470.0,95468.0,0.0001241]
[1734941101530,0.209487,95472.0,95468.0,0.0001241]
[1734941101933,0.209492,95469.0,95468.0,0.0001241]
[1734941102145,0.209487,95472.0,95468.0,0.0001241]
[1734941102563,0.001,95470.0,95468.0,0.0001241]
[1734941102889,0.209487,95472.0,95468.0,0.0001241]
[1734941103089,0.20948,95475.0,95468.0,0.0001241]
[1734941103272,0.001,95472.0,95468.0,0.0001241]
[1734941103629,0.001,95469.0,95468.0,0.0001241]
[1734941104779,0.001,95469.0,95468.0,0.1001241]
[1734941105413,0.209467,95480.0,95468.0,0.1001241]
[1734941105595,8.56e-05,95483.0,95469.0,0.1]
[1734941105873,0.003,95475.0,95474.0,0.1]
[1734941106071,8.56e-05,95483.0,95474.0,0.1]
[1734941107026,0.001,95475.0,95474.0,0.1]
[1734941107238,0.0010856,95483.0,95474.0,0.1]
[1734941108049,8.56e-05,95483.0,95474.0,0.1]
[1734941108686,0.0020856,95483.0,95477.0,0.1]
[1734941109237,8.56e-05,95483.0,95477.0,0.1]
[1734941109520,0.0040856,95483.0,95477.0,0.1]
[1734941109729,0.0010856,95483.0,95477.0,0.1]
[1734941109967,0.0030856,95483.0,95477.0,0.1]
[1734941110172,0.2135476,95483.0,95477.0,0.1]
[1734941110376,0.2135476,95483.0,95477.0,0.027]
[1734941110789,0.0040856,95483.0,95477.0,0.027]
[1734941111888,0.418955,95476.0,95470.0,0.1013084]
[1734941112140,0.0040856,95483.0,95472.0,0.027]
[1734941112932,8.56e-05,95483.0,95472.0,0.027]
[1734941113453,8.56e-05,95483.0,95468.0,0.0001241]
[1734941113649,8.56e-05,95483.0,95468.0,0.04371982]
[1734941113904,0.209475,95477.0,95468.0,0.0001241]
[1734941114702,0.209486,95472.0,95468.0,0.0001241]
[1734941115063,0.418972,95472.0,95468.0,0.0001241]
[1734941115775,0.418972,95472.0,95468.0,0.0011241]
[1734941115981,0.209489,95470.0,95468.0,0.0011241]
[1734941116189,0.15699156,95469.0,95468.0,0.0001241]
[1734941116476,0.23809156,95469.0,95468.0,0.0001241]
[1734941116959,0.35869156,95469.0,95468.0,0.0001241]
[1734941117253,0.35869156,95469.0,95468.0,0.0011241]
[1734941117481,0.35869156,95469.0,95468.0,0.0001241]
[1734941117984,0.37966591,95469.0,95468.0,0.0001241]
[1734941118225,0.28569156,95469.0,95468.0,0.0001241]
[1734941118511,0.21509156,95469.0,95468.0,0.0001241]
[1734941118672,0.03268316,95469.0,95468.0,0.0001241]
[1734941118873,0.012,95469.0,95468.0,0.0001241]
[1734941119435,0.006,95469.0,95468.0,0.0001241]
[1734941119838,0.209489,95470.0,95468.0,0.0001241]
[1734941120045,0.015,95469.0,95468.0,0.0021241]
[1734941120215,0.03867883,95469.0,95468.0,0.0011241]
[1734941120418,0.03867883,95469.0,95457.0,0.0308241]
[1734941120637,0.418988,95468.0,95457.0,0.0309482]
[1734941121739,0.209504,95464.0,95457.0,0.0309482]
[1734941121953,0.003,95469.0,95457.0,0.0001241]
[1734941122159,0.209514,95459.0,95457.0,0.0001241]
[1734941122366,0.03268062,95458.0,95457.0,0.0011241]
[1734941122774,0.03268062,95458.0,95457.0,0.0012951]
[1734941122974,0.209514,95459.0,95457.0,0.0002951]
[1734941123258,0.211514,95459.0,95457.0,0.0002951]
[1734941123884,0.002,95458.0,95457.0,0.0002951]
[1734941125648,0.003,95458.0,95457.0,0.0002951]
[1734941125826,0.001,95458.0,95457.0,0.0002951]
[1734941126692,0.003,95458.0,95457.0,0.0002951]
[1734941127287,0.03566334,95458.0,95457.0,0.0002951]
[1734941127749,0.15997174,95458.0,95457.0,0.0002951]
[1734941128155,0.24227174,95458.0,95457.0,0.0002951]
[1734941128712,0.24127174,95458.0,95457.0,0.0002951]
[1734941128927,0.54217174,95458.0,95457.0,0.0002951]
[1734941129308,0.55117174,95458.0,95457.0,0.0012951]
[1734941130330,0.209579,95429.0,95428.0,0.0004603]
[1734941130529,0.209579,95429.0,95428.0,0.00058877]
[1734941130855,0.209579,95429.0,95428.0,0.00012847]
[1734941131227,0.3338874,95429.0,95428.0,0.00012847]
[1734941131406,0.36651916,95429.0,95428.0,0.00012847]
[1734941131853,0.36651916,95429.0,95428.0,0.00112847]
[1734941132401,0.36651916,95429.0,95428.0,0.00312847]
[1734941132592,0.36751916,95429.0,95428.0,0.00012847]
[1734941133195,0.36851916,95429.0,95428.0,0.00012847]
[1734941133670,0.3358874,95429.0,95428.0,0.00012847]
[1734941134951,0.61845916,95429.0,95428.0,0.00012847]
[1734941135153,0.61845916,95429.0,95428.0,4.7e-07]
[1734941135772,0.61645916,95429.0,95428.0,0.00017147]
[1734941135971,0.48259,95424.0,95423.0,0.000171]
[1734941136176,0.69187016,95424.0,95423.0,0.00070449]
[1734941136390,0.69187016,95424.0,95423.0,4.9e-07]